fUSD/lending_fUSD_20260309
["ID","MTS","AMOUNT","RATE_DAILY","PERIOD"]
[408028149,1773048639718,-500.0,0.00019947,2]
[408028150,1773048639729,-500.0,0.00019947,2]
[408028151,1773048639738,-500.0,0.00019947,2]
[408028152,1773048639748,-950.0,0.00019947,2]
[408028153,1773048639758,-514.0,0.00019947,2]
[408028154,1773048639767,-630.0,0.00019947,2]
[408028155,1773048639776,-1108.21987424,0.0001995,15]
[408028156,1773048639785,-500.0,0.00019973,2]
[408028157,1773048639795,-500.0,0.00019973,2]
[408028158,1773048639804,-3664.0,0.00019973,2]
[408028159,1773048639813,-500.0,0.00019973,2]
[408028160,1773048639823,-500.0,0.00019973,2]
[408028161,1773048639832,-500.0,0.00019973,2]
[408028162,1773048639842,-500.0,0.00019973,2]
[408028163,1773048639851,-323.77109867,0.00019973,2]
[408028164,1773048639861,-151.0,0.00019977,2]
[408028165,1773048639870,-267.0,0.00019979,2]
[408028166,1773048639880,-500.0,0.00019979,2]
[408028167,1773048639889,-500.0,0.00019979,2]
[408028168,1773048639898,-500.0,0.00019979,2]
[408028169,1773048639908,-118906.15753635,0.0001998,2]
[408028170,1773048639917,-258.09,0.00019988,2]
[408028171,1773048639926,-300.0,0.0001999,2]
[408028172,1773048639936,-150.0,0.0001999,2]
[408028173,1773048639945,-1279.0,0.0001999,2]
[408028174,1773048639955,-150.0,0.0001999,2]
[408028175,1773048639964,-1213.0,0.0001999,2]
[408028176,1773048639973,-922.0,0.0001999,2]
[408028177,1773048639983,-5994.0,0.0001999,2]
[408028178,1773048639992,-2461.0,0.0001999,2]
[408028179,1773048640002,-3935.35,0.0001999,2]
[408028180,1773048640011,-363.7579418,0.0001999,2]
[408028181,1773048640020,-151.0,0.00019997,2]
[408028182,1773048640029,-500.0,0.00019998,2]
[408028183,1773048640039,-500.0,0.00019998,2]
[408028184,1773048640048,-500.0,0.00019998,2]
[408028185,1773048640058,-500.0,0.00019999,2]
[408028186,1773048640067,-500.0,0.00019999,2]
[408028187,1773048640077,-500.0,0.00019999,2]
[408028188,1773048640086,-500.0,0.00019999,2]
[408028189,1773048640095,-500.0,0.00019999,2]
[408028190,1773048640104,-500.0,0.00019999,2]
[408028191,1773048640114,-437.89413426,0.00019999,2]
[408028192,1773048640131,-500.0,0.00019999,2]
[408028193,1773048640141,-500.0,0.00019999,2]
[408028194,1773048640152,-500.0,0.00019999,2]
[408028196,1773048640162,-500.0,0.00019999,2]
[408028197,1773048640172,-500.0,0.00019999,2]
[408028198,1773048640183,-500.0,0.00019999,2]
[408028199,1773048640191,-500.0,0.00019999,2]
[408028200,1773048640200,-500.0,0.00019999,2]
[408028201,1773048640210,-500.0,0.00019999,2]
[408028202,1773048640219,-500.0,0.00019999,2]
[408028203,1773048640229,-500.0,0.00019999,2]
[408028204,1773048640238,-500.0,0.00019999,2]
[408028205,1773048640247,-500.0,0.00019999,2]
[408028206,1773048640256,-500.0,0.00019999,2]
[408028207,1773048640266,-500.0,0.00019999,2]
[408028208,1773048640275,-500.0,0.00019999,2]
[408028209,1773048640284,-500.0,0.00019999,2]
[408028210,1773048640293,-500.0,0.00019999,2]
[408028211,1773048640303,-500.0,0.00019999,2]
[408028212,1773048640313,-500.0,0.00019999,2]
[408028213,1773048640327,-500.0,0.00019999,2]
[408028214,1773048640337,-500.0,0.00019999,2]
[408028215,1773048640347,-500.0,0.00019999,2]
[408028216,1773048640359,-500.0,0.00019999,2]
[408028217,1773048640369,-500.0,0.00019999,2]
[408028218,1773048640378,-463.4000001,0.00019999,2]
[408028219,1773048640387,-500.0,0.00019999,2]
[408028220,1773048640399,-500.0,0.00019999,2]
[408028221,1773048640408,-500.0,0.00019999,2]
[408028222,1773048640417,-500.0,0.00019999,2]
[408028223,1773048640427,-500.0,0.00019999,2]
[408028224,1773048640438,-505.88225533,0.00019999,2]
[408028225,1773048640449,-155.509,0.00019999,2]
[408028226,1773048640460,-506.82131153,0.00019999,2]
[408028227,1773048640469,-502.32320781,0.00019999,2]
[408028228,1773048640480,-33181.70399474,0.00019999,2]
[408028229,1773048640489,-504.66308381,0.00019999,2]
[408028230,1773048640498,-504.92020981,0.00019999,2]
[408028231,1773048640507,-500.0,0.00019999,2]
[408028232,1773048640516,-1048.80405627,0.00019999,5]
[408028233,1773048640526,-3000.0,0.00019999,2]
[408028234,1773048640535,-151.0,0.00019999,2]
[408028235,1773048640543,-294.9535777,0.00019999,2]
[408028236,1773048640552,-306.76678934,0.00019999,2]
[408028237,1773048640561,-500.0,0.00019999,2]
[408028238,1773048640570,-500.0,0.00019999,2]
[408028239,1773048640579,-533.41629745,0.00019999,2]
[408028240,1773048640588,-270.04221902,0.00019999,2]
[408028241,1773048640597,-1762.0,0.0002,2]
[408028242,1773048640606,-1733.0,0.0002,2]
[408028243,1773048640615,-160924.63330678,0.0002,2]
[408028244,1773048640625,-45612.37014662,0.0002,2]
[408028245,1773048640634,-586357.24692185,0.0002,2]
[408028246,1773048640648,-12043.61549714,0.0002,2]
[408028247,1773048640659,-1343.44849106,0.0002,2]
[408028248,1773048640670,-365978.11738366,0.0002,2]
[408028249,1773048640679,-114774.38608092,0.0002,2]
[408028250,1773048640862,-361.125,0.0001999,2]
[408028268,1773048643321,-153.40246871,0.00019349,2]
[408028269,1773048643331,-2.6329418,0.0001999,2]
[408028270,1773048643340,-185.45988489,0.0001999,2]
[408028281,1773048645996,-178.29805691,0.0001999,2]
[408028282,1773048646005,-1389.70194309,0.0001999,2]
[408028284,1773048646157,-1511.77999999,0.0001999,2]
[408028309,1773048851413,-293.76428,0.00017,2]
[408028310,1773048851434,-500.0,0.00018356,7]
[408028311,1773048851456,-500.0,0.00018356,7]
[408028312,1773048851477,-306.23572,0.00018356,7]
[408028313,1773048854093,-293.76428,0.00018356,7]
[408028314,1773048900077,503.0,0.00017,2]
[408028315,1773048932777,500.0,0.00018356,7]
[408028316,1773048946205,303.23572,0.00018356,7]
[408028317,1773049254398,4555.47,0.0001689,2]
[408028318,1773049345460,-500.0,0.000169,2]
[408028319,1773049345487,-293.0,0.000169,2]
[408028320,1773049360506,-300.0,0.0001695,2]
[408028321,1773049384588,-506.0,0.00017,2]
[408028322,1773049390825,-1640.98663238,0.00017425,3]
[408028323,1773049407980,-152.0,0.00018066,3]
[408028324,1773049424162,-196.76428,0.00018356,7]
[408028325,1773049424193,-500.0,0.00018356,7]
[408028326,1773049433918,500.0,0.000168,2]
[408028327,1773049439336,-195.0,0.0001859,2]
[408028328,1773049439364,-300.0,0.0001859,2]
[408028329,1773049489112,-500.0,0.00018356,7]
[408028330,1773049491638,500.0,0.00018356,7]
[408028331,1773049589308,500.0,0.000168,2]
[408028332,1773049686877,-506.0,0.00017,2]
[408028333,1773049720376,-3240.0,0.00018427,2]
[408028334,1773049753764,-2000.0,0.00018426,2]
[408028335,1773049768871,-500.0,0.00018625,2]
[408028336,1773049821375,-150.0,0.00018625,2]
[408028342,1773049832307,-200.0,0.00018717,2]
[408028343,1773049832318,-152.0,0.00018726,4]
[408028344,1773049832328,-170.43722123,0.00018744,2]
[408028345,1773049832340,-1829.56277877,0.00018744,2]
[408028346,1773049832350,-1530.93722123,0.0001876,2]
[408028347,1773049832374,-1155.85277877,0.0001876,2]
[408028348,1773049832383,-904.04,0.00018769,2]
[408028349,1773049832392,-1200.0,0.00018862,2]
[408028350,1773049832401,-300.0,0.00018863,2]
[408028352,1773049832410,-300.0,0.00018863,2]
[408028353,1773049832420,-2167.80749571,0.00018864,2]
[408028354,1773049832431,-699.51250429,0.00018864,2]
[408028355,1773049832440,-1600.0,0.00018864,2]
[408028356,1773049832450,-3580.48749571,0.00018909,2]
[408028357,1773049832463,-1300.0,0.00018909,2]
[408028358,1773049832475,-3250.0,0.00018909,2]
[408028360,1773049832487,-1869.50250429,0.00018909,2]
[408028362,1773049832496,-500.0,0.00018936,2]
[408028364,1773049832506,-174.61919141,0.00018936,2]
[408028366,1773049832515,-506.0,0.00018969,3]
[408028368,1773049832524,-150.0,0.00019083,2]
[408028369,1773049832533,-150.0,0.00019136,2]
[408028370,1773049832542,-1000.0,0.00019178,2]
[408028371,1773049832552,-200.0,0.00019189,2]
[408028372,1773049832561,-12356.54502774,0.00019201,2]
[408028373,1773049832572,-167108.37917226,0.00019201,2]
[408028374,1773049832582,-904.04,0.00019238,2]
[408028375,1773049832591,-3234.73258256,0.00019301,6]
[408028376,1773049832601,-500.0,0.00019315,2]
[408028377,1773049832610,-153.40246871,0.00019349,2]
[408028378,1773049832620,-152.0,0.00019385,5]
[408028379,1773049832630,-161.25539473,0.00019425,2]
[408028380,1773049832640,-500.0,0.00019452,7]
[408028381,1773049832649,-500.0,0.00019452,7]
[408028382,1773049832670,-1000.0,0.00019452,2]
[408028383,1773049832679,-181.08010149,0.00019484,2]
[408028384,1773049832688,-3076.2011,0.00019518,2]
[408028385,1773049832699,-5428.17536117,0.00019546,2]
[408028386,1773049832708,-12937.4989,0.00019558,2]
[408028387,1773049832718,-5428.17536115,0.00019585,2]
[408028388,1773049832727,-500.0,0.00019645,2]
[408028389,1773049832738,-173.87758592,0.00019645,2]
[408028390,1773049832748,-500.0,0.00019645,2]
[408028391,1773049832758,-500.0,0.00019645,2]
[408028392,1773049832767,-500.0,0.00019645,2]
[408028393,1773049832776,-500.0,0.00019645,2]
[408028394,1773049832786,-500.0,0.00019645,2]
[408028395,1773049832795,-500.0,0.00019645,2]
[408028396,1773049832804,-500.0,0.00019645,2]
[408028397,1773049832814,-500.0,0.00019645,2]
[408028398,1773049832823,-500.0,0.00019645,2]
[408028399,1773049832833,-500.0,0.00019645,2]
[408028400,1773049832842,-315.66843952,0.00019645,2]
[408028401,1773049832852,-500.0,0.00019645,2]
[408028402,1773049832862,-500.0,0.00019645,2]
[408028403,1773049832872,-500.0,0.00019645,2]
[408028404,1773049832881,-500.0,0.00019645,2]
[408028405,1773049832890,-500.0,0.00019645,2]
[408028406,1773049832900,-500.0,0.00019645,2]
[408028407,1773049832909,-500.0,0.00019645,2]
[408028408,1773049832919,-500.0,0.00019645,2]
[408028409,1773049832929,-500.0,0.00019645,2]
[408028410,1773049832938,-500.0,0.00019645,2]
[408028411,1773049832947,-500.0,0.00019645,2]
[408028412,1773049832957,-151.0,0.00019646,2]
[408028413,1773049832967,-833.94767128,0.00019646,2]
[408028414,1773049832976,-1428.38747117,0.00019646,2]
[408028415,1773049832986,-500.0,0.00019646,2]
[408028416,1773049832996,-151.0,0.00019646,2]
[408028417,1773049833007,-250.0,0.00019646,2]
[408028418,1773049833016,-500.0,0.00019646,2]
[408028419,1773049833026,-250.0,0.00019646,2]
[408028420,1773049833035,-151.0,0.00019646,2]
[408028421,1773049833045,-500.0,0.00019646,2]
[408028422,1773049833055,-250.0,0.00019646,2]
[408028423,1773049833064,-151.0,0.00019646,2]
[408028424,1773049833074,-500.0,0.00019646,2]
[408028425,1773049833084,-250.0,0.00019646,2]
[408028426,1773049833094,-151.0,0.00019646,2]
[408028427,1773049833103,-500.0,0.00019646,2]
[408028428,1773049833407,-250.0,0.00019646,2]
[408028429,1773049833417,-151.0,0.00019646,2]
[408028430,1773049833427,-1500.0,0.00019646,2]
[408028431,1773049833436,-250.0,0.00019646,2]
[408028432,1773049833446,-500.0,0.00019646,2]
[408028433,1773049833455,-151.0,0.00019646,2]
[408028434,1773049833464,-1500.0,0.00019646,2]
[408028435,1773049833474,-250.0,0.00019646,2]
[408028436,1773049833484,-500.0,0.00019646,2]
[408028437,1773049833494,-151.0,0.00019646,2]
[408028438,1773049833504,-1500.0,0.00019646,2]
[408028439,1773049833514,-261.64199575,0.00019646,2]
[408028440,1773049833523,-500.0,0.00019646,2]
[408028441,1773049833532,-151.0,0.00019646,2]
[408028442,1773049833542,-1500.0,0.00019646,2]
[408028443,1773049833551,-500.0,0.00019646,2]
[408028444,1773049833560,-151.0,0.00019646,2]
[408028445,1773049833570,-1500.0,0.00019646,2]
[408028446,1773049833579,-500.0,0.00019646,2]
[408028447,1773049833589,-151.0,0.00019646,2]
[408028448,1773049833598,-1500.0,0.00019646,2]
[408028449,1773049833607,-500.0,0.00019646,2]
[408028450,1773049833617,-1500.0,0.00019646,2]
[408028451,1773049833626,-1500.0,0.00019646,2]
[408028452,1773049833635,-1500.0,0.00019646,2]
[408028453,1773049833644,-1500.0,0.00019646,2]
[408028454,1773049833655,-3000.0,0.00019646,2]
[408028455,1773049833666,-1500.0,0.00019646,2]
[408028456,1773049833675,-3000.0,0.00019646,2]
[408028457,1773049833684,-3000.0,0.00019646,2]
[408028458,1773049833693,-3000.0,0.00019646,2]
[408028459,1773049833704,-3000.0,0.00019646,2]
[408028460,1773049833714,-200.0,0.00019646,2]
[408028461,1773049833723,-3000.0,0.00019646,2]
[408028462,1773049833733,-3000.0,0.00019646,2]
[408028463,1773049833743,-3000.0,0.00019646,2]
[408028464,1773049833752,-3000.0,0.00019646,2]
[408028465,1773049833762,-3000.0,0.00019646,2]
[408028466,1773049833771,-3000.0,0.00019646,2]
[408028467,1773049833780,-151.0,0.00019646,2]
[408028468,1773049833789,-151.0,0.00019646,2]
[408028469,1773049833799,-151.0,0.00019646,2]
[408028470,1773049833808,-151.0,0.00019646,2]
[408028471,1773049833817,-151.0,0.00019646,2]
[408028472,1773049833826,-151.0,0.00019646,2]
[408028473,1773049833835,-151.0,0.00019646,2]
[408028474,1773049833845,-151.0,0.00019646,2]
[408028475,1773049833854,-151.0,0.00019646,2]
[408028476,1773049833863,-151.0,0.00019646,2]
[408028477,1773049833873,-289.57214403,0.00019646,2]
[408028478,1773049833882,-1500.0,0.00019646,2]
[408028479,1773049833892,-1500.0,0.00019646,2]
[408028480,1773049833901,-1500.0,0.00019646,2]
[408028481,1773049833910,-1500.0,0.00019646,2]
[408028482,1773049833919,-1500.0,0.00019646,2]
[408028483,1773049833928,-1500.0,0.00019646,2]
[408028484,1773049833937,-1500.0,0.00019646,2]
[408028485,1773049833946,-1500.0,0.00019646,2]
[408028486,1773049833955,-1500.0,0.00019646,2]
[408028487,1773049833964,-1500.0,0.00019646,2]
[408028488,1773049833973,-1500.0,0.00019646,2]
[408028489,1773049833982,-8000.0,0.00019646,2]
[408028490,1773049833991,-8000.0,0.00019646,2]
[408028491,1773049834000,-8000.0,0.00019646,2]
[408028492,1773049834009,-8000.0,0.00019646,2]
[408028493,1773049834018,-8000.0,0.00019646,2]
[408028494,1773049834027,-8000.0,0.00019646,2]
[408028495,1773049834036,-8000.0,0.00019646,2]
[408028496,1773049834045,-8000.0,0.00019646,2]
[408028497,1773049834054,-8000.0,0.00019646,2]
[408028498,1773049834064,-8000.0,0.00019646,2]
[408028499,1773049834074,-8000.0,0.00019646,2]
[408028500,1773049834084,-151.0,0.00019657,2]
[408028501,1773049834094,-391.0,0.0001967,5]
[408028502,1773049834104,-764.0,0.0001967,5]
[408028503,1773049834113,-500.0,0.00019673,2]
[408028504,1773049834122,-98.70148305,0.00019673,2]
[408028505,1773049834134,-57.06982666,0.00019673,2]
[408028506,1773049834143,-150.0,0.00019673,2]
[408028507,1773049834152,-214.75538024,0.00019673,2]
[408028508,1773049834162,-150.0,0.00019673,2]
[408028509,1773049834171,-150.0,0.00019673,2]
[408028510,1773049834180,-150.0,0.00019673,2]
[408028511,1773049834189,-150.0,0.00019673,2]
[408028512,1773049834198,-150.0,0.00019673,2]
[408028513,1773049834208,-150.0,0.00019673,2]
[408028514,1773049834217,-150.0,0.00019673,2]
[408028515,1773049834226,-258.09,0.00019673,2]
[408028516,1773049834236,-150.0,0.00019673,2]
[408028517,1773049834245,-150.0,0.00019673,2]
[408028518,1773049834255,-549.0,0.00019673,2]
[408028519,1773049834264,-1127.0,0.00019673,2]
[408028520,1773049834274,-150.0,0.00019673,2]
[408028521,1773049834283,-150.0,0.00019673,2]
[408028522,1773049834293,-500.0,0.00019673,2]
[408028523,1773049834302,-500.0,0.00019673,2]
[408028524,1773049834311,-591.0,0.00019673,2]
[408028525,1773049834322,-500.0,0.00019673,2]
[408028526,1773049834331,-150.0,0.00019673,2]
[408028527,1773049834341,-150.0,0.00019673,2]
[408028528,1773049834350,-500.0,0.00019673,2]
[408028529,1773049834359,-150.0,0.00019673,2]
[408028530,1773049834368,-500.0,0.00019673,2]
[408028531,1773049834378,-752.0,0.00019673,2]
[408028532,1773049834386,-150.0,0.00019673,2]
[408028533,1773049834396,-500.0,0.00019673,2]
[408028534,1773049834405,-150.0,0.00019673,2]
[408028535,1773049834414,-150.0,0.00019673,2]
[408028536,1773049834423,-500.0,0.00019673,2]
[408028537,1773049834432,-150.0,0.00019673,2]
[408028538,1773049834441,-168.0,0.00019677,2]
[408028539,1773049834450,-2000.0,0.000197,2]
[408028540,1773049834460,-951.3154144,0.000197,2]
[408028541,1773049834469,-904.04,0.00019708,2]
[408028542,1773049834478,-150.0,0.00019716,2]
[408028543,1773049834486,-154.50653522,0.00019716,2]
[408028544,1773049834496,-150.0,0.00019716,2]
[408028545,1773049834506,-150.0,0.00019716,2]
[408028546,1773049834515,-150.0,0.00019716,2]
[408028547,1773049834524,-150.0,0.00019716,2]
[408028548,1773049834533,-951.31541438,0.00019722,2]
[408028549,1773049834543,-971.79143728,0.00019726,2]
[408028554,1773049838198,-5428.17536115,0.00019625,2]
[408028555,1773049838208,-28.20856272,0.00019726,2]
[408028556,1773049838217,-150.0,0.00019728,2]
[408028557,1773049838227,-150.0,0.00019728,2]
[408028558,1773049838236,-150.0,0.00019728,2]
[408028559,1773049838245,-150.0,0.00019728,2]
[408028561,1773049838255,-150.0,0.00019728,2]
[408028563,1773049838265,-150.0,0.00019728,2]
[408028565,1773049838275,-150.0,0.00019728,2]
[408028567,1773049838284,-549.0,0.00019728,2]
[408028568,1773049838294,-1127.0,0.00019728,2]
[408028569,1773049838305,-150.0,0.00019728,2]
[408028570,1773049838319,-150.0,0.00019728,2]
[408028571,1773049838337,-500.0,0.00019728,2]
[408028572,1773049838347,-500.0,0.00019728,2]
[408028573,1773049838357,-591.0,0.00019728,2]
[408028574,1773049838369,-500.0,0.00019728,2]
[408028575,1773049838382,-150.0,0.00019728,2]
[408028576,1773049838392,-500.0,0.00019728,2]
[408028577,1773049838402,-500.0,0.00019728,2]
[408028578,1773049838411,-752.0,0.00019728,2]
[408028579,1773049838421,-500.0,0.00019728,2]
[408028580,1773049838430,-150.0,0.00019728,2]
[408028581,1773049838440,-150.0,0.00019728,2]
[408028582,1773049838450,-150.0,0.00019728,2]
[408028583,1773049838459,-500.0,0.00019728,2]
[408028584,1773049838469,-951.31541438,0.00019744,2]
[408028585,1773049838479,-951.31541438,0.00019767,2]
[408028586,1773049838488,-150.0,0.00019771,2]
[408028587,1773049838497,-150.0,0.00019771,2]
[408028588,1773049838506,-150.0,0.00019771,2]
[408028589,1773049838515,-151.0,0.00019771,2]
[408028590,1773049838524,-200.0,0.00019783,2]
[408028591,1773049838533,-200.0,0.00019783,2]
[408028592,1773049838543,-200.0,0.00019783,2]
[408028593,1773049838551,-200.0,0.00019783,2]
[408028594,1773049838560,-200.0,0.00019783,2]
[408028595,1773049838569,-200.0,0.00019783,2]
[408028596,1773049838578,-200.0,0.00019783,2]
[408028597,1773049838587,-549.0,0.00019783,2]
[408028598,1773049838596,-1127.0,0.00019783,2]
[408028599,1773049838605,-200.0,0.00019783,2]
[408028600,1773049838614,-200.0,0.00019783,2]
[408028601,1773049838623,-500.0,0.00019783,2]
[408028602,1773049838632,-500.0,0.00019783,2]
[408028603,1773049838642,-591.0,0.00019783,2]
[408028604,1773049838651,-500.0,0.00019783,2]
[408028605,1773049838663,-150.0,0.00019783,2]
[408028606,1773049838673,-500.0,0.00019783,2]
[408028607,1773049838683,-500.0,0.00019783,2]
[408028608,1773049838692,-752.0,0.00019783,2]
[408028609,1773049838703,-500.0,0.00019783,2]
[408028610,1773049838712,-200.0,0.00019783,2]
[408028611,1773049838721,-200.0,0.00019783,2]
[408028612,1773049838731,-200.0,0.00019783,2]
[408028613,1773049838740,-500.0,0.00019783,2]
[408028614,1773049838749,-951.31541438,0.00019789,2]
[408028615,1773049838759,-6752.0367,0.00019792,2]
[408028616,1773049838769,-1000.0,0.000198,2]
[408028617,1773049838778,-1325.75653448,0.000198,30]
[408028618,1773049838787,-181.737,0.000198,2]
[408028619,1773049838796,-2900.876,0.000198,2]
[408028620,1773049838805,-1521.6101,0.000198,2]
[408028621,1773049838814,-1521.61011,0.000198,2]
[408028622,1773049838823,-32927.6463,0.000198,2]
[408028623,1773049838832,-173508.25989345,0.0001981,2]
[408028624,1773049838841,-151.0,0.0001981,2]
[408028625,1773049838851,-951.31541438,0.00019811,2]
[408028626,1773049838860,-200.0,0.00019826,2]
[408028627,1773049838869,-200.0,0.00019826,2]
[408028628,1773049838878,-200.0,0.00019826,2]
[408028629,1773049838886,-951.31541438,0.00019833,2]
[408028630,1773049838895,-549.0,0.00019837,2]
[408028631,1773049838904,-1127.0,0.00019837,2]
[408028632,1773049838913,-500.0,0.00019837,2]
[408028633,1773049838923,-500.0,0.00019837,2]
[408028635,1773049838933,-591.0,0.00019837,2]
[408028637,1773049838943,-500.0,0.00019837,2]
[408028639,1773049838959,-150.0,0.00019837,2]
[408028641,1773049838969,-452.35755136,0.00019837,2]
[408028643,1773049838978,-500.0,0.00019837,2]
[408028645,1773049838987,-752.0,0.00019837,2]
[408028647,1773049838997,-500.0,0.00019837,2]
[408028649,1773049839006,-500.0,0.00019837,2]
[408028651,1773049839015,-951.31541438,0.00019856,2]
[408028653,1773049839025,-2500.0,0.00019873,2]
[408028655,1773049839034,-500.0,0.00019873,2]
[408028657,1773049839043,-500.0,0.00019873,2]
[408028659,1773049839052,-951.31541438,0.00019878,2]
[408028660,1773049839062,-151.0,0.00019886,2]
[408028661,1773049839071,-267.0,0.00019892,2]
[408028662,1773049839083,-549.0,0.00019892,2]
[408028663,1773049839092,-1127.0,0.00019892,2]
[408028664,1773049839102,-500.0,0.00019892,2]
[408028665,1773049839111,-500.0,0.00019892,2]
[408028666,1773049839121,-591.0,0.00019892,2]
[408028667,1773049839131,-250.0,0.00019892,2]
[408028668,1773049839141,-500.0,0.00019892,2]
[408028669,1773049839161,-752.0,0.00019892,2]
[408028670,1773049839182,-528.0,0.00019892,2]
[408028671,1773049839202,-500.0,0.00019892,2]
[408028672,1773049839212,-500.0,0.00019899,2]
[408028673,1773049839221,-500.0,0.00019899,2]
[408028674,1773049839230,-500.0,0.00019899,2]
[408028675,1773049839240,-500.0,0.00019899,2]
[408028676,1773049839249,-500.0,0.00019899,2]
[408028677,1773049839261,-500.0,0.00019899,2]
[408028678,1773049839271,-500.0,0.00019899,2]
[408028679,1773049839279,-500.0,0.00019899,2]
[408028680,1773049839289,-506.82131153,0.00019899,2]
[408028681,1773049839298,-502.32320781,0.00019899,2]
[408028682,1773049839307,-500.0,0.00019899,2]
[408028683,1773049839317,-877.07340192,0.000199,2]
[408028684,1773049839326,-5000.0,0.000199,2]
[408028685,1773049839335,-2702.39283208,0.000199,2]
[408028686,1773049839345,-967.1067069,0.000199,2]
[408028687,1773049839354,-1744.1212,0.000199,2]
[408028688,1773049839363,-951.31541438,0.000199,2]
[408028689,1773049839372,-25000.0,0.000199,3]
[408028690,1773049839382,-4819.04359242,0.000199,2]
[408028691,1773049839391,-8531.31265296,0.000199,2]
[408028692,1773049839400,-665.0,0.00019904,2]
[408028693,1773049839409,-549.0,0.00019947,2]
[408028694,1773049839419,-1127.0,0.00019947,2]
[408028695,1773049839428,-500.0,0.00019947,2]
[408028696,1773049839438,-500.0,0.00019947,2]
[408028697,1773049839448,-591.0,0.00019947,2]
[408028698,1773049839457,-500.0,0.00019947,2]
[408028699,1773049839467,-752.0,0.00019947,2]
[408028700,1773049839476,-500.0,0.00019947,2]
[408028701,1773049839486,-258.09,0.00019947,2]
[408028702,1773049839495,-500.0,0.00019973,2]
[408028703,1773049839504,-3664.0,0.00019973,2]
[408028704,1773049839514,-323.77109867,0.00019973,2]
[408028705,1773049839523,-500.0,0.00019973,2]
[408028706,1773049839532,-500.0,0.00019979,2]
[408028707,1773049839767,-3044.5603086,0.0001998,2]
[408028708,1773049839777,-13829.4243989,0.00019983,2]
[408028709,1773049839786,-1207.4372147,0.00019988,2]
[408028710,1773049839795,-151.3528124,0.0001999,2]
[408028711,1773049839804,-1342.0,0.0001999,2]
[408028712,1773049839813,-1042.0,0.0001999,2]
[408028713,1773049839822,-619.0,0.0001999,2]
[408028714,1773049839831,-1279.0,0.0001999,2]
[408028715,1773049839841,-150.0,0.0001999,2]
[408028716,1773049839850,-922.0,0.0001999,2]
[408028717,1773049839859,-1213.0,0.0001999,2]
[408028718,1773049839868,-485.01058907,0.0001999,2]
[408028719,1773049839878,-485.01058907,0.0001999,2]
[408028720,1773049839887,-485.01058907,0.0001999,2]
[408028721,1773049839896,-522.797,0.0001999,2]
[408028722,1773049839907,-2461.0,0.0001999,2]
[408028723,1773049839916,-151.0,0.00019997,2]
[408028724,1773049839926,-2256.1169194,0.00019997,2]
[408028725,1773049839935,-500.0,0.00019998,2]
[408028726,1773049839944,-500.0,0.00019998,2]
[408028727,1773049839953,-500.0,0.00019998,2]
[408028728,1773049839963,-500.0,0.00019998,2]
[408028729,1773049839972,-500.0,0.00019998,2]
[408028730,1773049839983,-505.88225533,0.00019998,2]
[408028731,1773049839992,-463.4000001,0.00019998,2]
[408028732,1773049840001,-500.0,0.00019998,2]
[408028733,1773049840013,-1048.80405627,0.00019999,5]